bitfinex/quotes_ETHUSD_20250517
["timestamp","ask_amount","ask_price","bid_price","bid_amount"]
[1747523539854,19.87728955,2471.4,2471.3,0.38437716]
[1747523540139,4.04662004,2471.2,2470.9,0.48358381]
[1747523540338,4.04662004,2471.2,2470.9,0.70403591]
[1747523540495,4.04689648,2471.1,2470.9,0.70403591]
[1747523540693,4.04694455,2471.0,2470.9,0.48358381]
[1747523541543,8.0,2471.5,2470.9,0.48358381]
[1747523541725,4.04680984,2471.1,2470.9,0.48358381]
[1747523542044,4.04678078,2471.1,2470.9,0.48358381]
[1747523542195,4.04695577,2471.0,2470.8,0.30084724]
[1747523542397,4.04687911,2471.1,2470.7,0.7748]
[1747523542605,4.04700995,2471.0,2470.7,1.30539782]
[1747523543238,4.04712735,2470.9,2470.7,1.30539782]
[1747523543544,4.04712735,2470.9,2470.7,0.7748]
[1747523544037,11.97468186,2471.2,2470.7,0.7748]
[1747523544242,4.04690428,2471.1,2470.8,0.38343617]
[1747523544402,4.04697623,2471.0,2470.8,0.38343617]
[1747523544605,11.94997623,2471.0,2470.8,0.38343617]
[1747523545935,4.04710834,2470.9,2470.8,0.38343617]
[1747523546149,4.04710834,2470.9,2470.7,0.7748]
[1747523546295,4.04710834,2470.9,2470.8,0.30331138]
[1747523546496,7.903,2471.0,2470.7,0.7748]
[1747523546732,4.04724005,2470.9,2470.7,0.7748]
[1747523547033,4.04730566,2470.8,2470.5,0.48358381]
[1747523547235,4.04730566,2470.8,2470.5,1.07960056]
[1747523547611,4.04754094,2470.7,2470.6,0.38357967]
[1747523548431,11.97654094,2470.7,2470.6,0.38357967]
[1747523549204,4.04759977,2470.6,2470.2,0.7833]
[1747523549402,4.04803543,2470.4,2470.2,0.7833]
[1747523549635,11.95085171,2470.5,2470.2,0.7833]
[1747523549945,7.903,2470.5,2470.2,1.31483662]
[1747523550743,11.95078764,2470.5,2470.2,1.31483662]
[1747523550942,11.95078764,2470.5,2470.3,0.38345277]
[1747523551155,7.903,2470.5,2470.3,0.38345277]
[1747523551622,11.95076518,2470.5,2470.3,0.68421506]
[1747523551963,7.903,2470.5,2470.3,0.68421506]
[1747523552139,7.903,2470.6,2470.3,0.68421506]
[1747523552449,7.903,2470.7,2470.5,0.8053]
[1747523553310,11.95046798,2470.7,2470.5,0.8053]
[1747523553711,4.04759977,2470.6,2470.5,0.8053]
[1747523553930,11.95052292,2470.7,2470.4,0.38345277]
[1747523554111,4.04776361,2470.5,2470.4,0.38345277]
[1747523554307,4.04769824,2470.6,2470.4,0.38345277]
[1747523554512,7.903,2470.6,2470.4,0.38345277]
[1747523554725,7.903,2470.6,2470.4,0.85667403]
[1747523555239,7.903,2470.6,2470.4,0.38345277]
[1747523555544,4.04776361,2470.5,2470.4,0.38345277]
[1747523556244,11.95060971,2470.6,2470.4,0.38345277]
[1747523556245,11.95068981,2470.6,2470.4,0.38345277]
[1747523556760,11.9506899,2470.6,2470.3,0.30076229]
[1747523557058,11.9506899,2470.6,2470.1,4.85358435]
[1747523557216,11.9506899,2470.6,2470.1,5.79215364]
[1747523557850,4.04783138,2470.5,2470.2,0.38319817]
[1747523558052,1.44016684,2471.5,2470.3,4.04806042]
[1747523558361,15.807,2471.0,2470.2,0.38319817]
[1747523558652,4.0473094,2470.8,2470.3,4.04795737]
[1747523559019,15.807,2471.0,2470.2,4.64812845]
[1747523559243,4.0475958,2470.7,2470.2,4.64812845]
[1747523559552,4.0475958,2470.7,2470.4,0.38319817]
[1747523560967,4.04770532,2470.6,2470.4,0.38319817]
[1747523561263,7.903,2470.5,2470.4,0.38319817]
[1747523564276,11.95076361,2470.5,2470.4,0.38319817]
[1747523565125,4.04762229,2470.6,2470.4,0.38319817]
[1747523565126,4.0477608,2470.6,2470.4,0.38319817]
[1747523565331,11.94976361,2470.5,2470.4,0.38319817]
[1747523565740,7.902,2470.5,2470.4,0.38319817]
[1747523565968,11.94976361,2470.5,2470.4,0.38319817]
[1747523566943,8.0,2470.8,2470.5,0.8317]
[1747523567150,12.04734807,2470.8,2470.5,0.8317]
[1747523567357,15.807,2470.7,2470.5,0.8317]
[1747523567548,12.04734807,2470.8,2470.5,0.8317]
[1747523567751,15.807,2470.7,2470.5,0.8317]
[1747523568054,7.902,2470.6,2470.5,0.8317]
[1747523568660,11.94959977,2470.6,2470.5,0.8317]
[1747523568994,4.04776361,2470.5,2470.4,0.38319817]
[1747523573497,4.04817051,2470.3,2470.1,0.38319817]
[1747523574173,4.0482552,2470.2,2470.1,0.38319817]
[1747523575796,4.04816221,2470.3,2470.1,0.38319817]
[1747523575969,7.901,2470.2,2470.1,0.38319817]
[1747523576170,7.901,2470.2,2469.8,4.35210824]
[1747523576383,7.901,2470.2,2469.9,0.92147722]
[1747523576968,11.94925666,2470.2,2469.9,0.92147722]
[1747523577268,11.94925666,2470.2,2470.0,0.3843586]
[1747523577701,7.901,2470.2,2470.0,0.3843586]
[1747523578614,11.94925562,2470.2,2470.0,0.3843586]
[1747523579489,4.04825562,2470.2,2470.1,0.3843586]
[1747523579791,7.9,2470.2,2470.1,0.3843586]
[1747523582842,11.9482552,2470.2,2470.1,0.3843586]
[1747523582978,4.04817498,2470.3,2470.1,0.3843586]
[1747523582979,4.04816157,2470.3,2470.1,0.3843586]
[1747523583179,7.899,2470.2,2470.1,0.3843586]
[1747523584713,11.9472552,2470.2,2470.1,0.3843586]
[1747523586080,7.899,2470.2,2470.1,0.3843586]
[1747523587618,11.9472552,2470.2,2470.1,0.3843586]
[1747523588525,7.899,2470.2,2470.1,0.3843586]
[1747523588712,11.9472552,2470.2,2470.1,0.3843586]
[1747523592083,4.04891084,2469.8,2469.7,0.48358381]
[1747523592281,11.94991084,2469.8,2469.7,0.48358381]
[1747523594025,4.04938011,2469.6,2469.1,1.26048381]
[1747523594187,7.897,2469.5,2469.2,0.53106139]
[1747523594503,11.94643544,2469.5,2469.2,0.53106139]
[1747523594711,7.897,2469.5,2469.2,0.53106139]
[1747523594915,7.897,2469.5,2469.3,0.38476487]
[1747523595100,7.897,2469.5,2469.3,0.68108829]
[1747523595429,4.04975785,2469.3,2468.9,0.64528996]
[1747523595612,4.255,2468.7,2467.5,0.21129461]
[1747523595930,12.05186385,2468.0,2467.2,3.20974826]
[1747523596138,28.11686385,2468.0,2467.2,3.20974826]
[1747523596281,12.05186385,2468.0,2467.2,7.26283803]
[1747523596482,28.11386385,2468.0,2467.2,3.20974826]
[1747523596788,28.11186385,2468.0,2467.2,3.20974826]
[1747523597184,28.11193959,2468.0,2466.7,8.0]
[1747523597386,4.05330033,2467.2,2466.8,1.5901]
[1747523597584,12.21530033,2467.2,2466.6,4.05415966]
[1747523597826,12.21530033,2467.2,2466.7,0.55]
[1747523598148,12.21530033,2467.2,2466.6,4.05415966]
[1747523598437,12.21530033,2467.2,2466.7,0.55]
[1747523598623,12.21530033,2467.2,2466.8,0.8072]
[1747523598938,4.052297,2467.8,2467.2,0.8072]
[1747523599242,4.05182341,2468.1,2467.3,0.04052764]
[1747523599411,16.069,2468.0,2467.6,0.8072]
[1747523599614,8.165,2467.9,2467.6,0.8072]
[1747523599811,8.165,2467.9,2467.5,0.8072]
[1747523600033,8.165,2467.9,2467.6,0.8072]
[1747523600204,21.53839715,2468.3,2467.7,0.8072]
[1747523600404,24.065,2468.2,2467.5,4.05267547]
[1747523600736,8.159,2468.1,2467.8,4.05209263]
[1747523601854,16.066,2468.2,2467.8,4.05210479]
[1747523602246,16.066,2468.2,2467.8,4.05209512]
[1747523602448,4.05180681,2468.1,2467.5,4.05261722]
[1747523602743,4.05180681,2468.1,2467.6,4.86304109]
[1747523604561,20.11762588,2468.2,2467.6,4.86304109]
[1747523605036,4.0517059,2468.1,2467.6,4.86304109]
[1747523605363,8.142,2468.2,2467.8,4.05207491]
[1747523605535,8.142,2468.2,2467.9,4.05201172]
[1747523605742,8.142,2468.2,2467.8,4.94362366]
[1747523606535,8.142,2468.2,2467.8,0.8914978]
[1747523606735,8.142,2468.2,2466.6,4.05412082]
[1747523606936,4.05195156,2468.0,2467.5,4.0526034]
[1747523607566,4.05203179,2467.9,2467.4,4.602766]
[1747523607867,4.05178102,2468.1,2467.6,4.05244387]
[1747523608067,16.037,2468.0,2467.5,4.05266363]
[1747523608278,20.08894574,2468.0,2467.5,4.05266363]
[1747523608977,16.037,2468.0,2467.6,4.05239339]
[1747523609143,7.906,2468.1,2467.7,4.05228225]
[1747523609343,8.124,2467.9,2467.7,4.05228225]
[1747523610744,8.124,2467.9,2467.6,4.86296463]
[1747523612689,8.111,2468.2,2467.2,0.55]
[1747523612845,8.103,2468.1,2467.9,4.05190834]
[1747523613589,4.05128495,2468.4,2468.0,4.05184295]
[1747523613754,14.79374975,2468.7,2468.1,4.05169877]
[1747523613755,8.099,2468.3,2468.1,4.05169877]
[1747523615176,8.099,2468.3,2468.1,4.05169861]
[1747523615375,6.79374975,2468.7,2468.0,4.05182485]
[1747523615590,8.089,2468.4,2468.1,4.05157435]
[1747523615770,8.089,2468.4,2468.3,4.05137138]
[1747523616287,8.089,2468.4,2468.2,4.05144438]
[1747523616483,8.111,2468.6,2468.2,4.05144438]
[1747523616684,8.081,2468.5,2468.3,4.05137138]
[1747523616855,8.083,2468.5,2468.4,4.05116036]
[1747523617378,8.081,2468.6,2468.5,4.05104314]
[1747523617750,4.05031039,2469.0,2468.4,4.05118759]
[1747523617751,4.05031039,2469.0,2468.6,4.05086814]
[1747523618001,8.077,2468.9,2468.5,4.05094646]
[1747523618554,8.077,2468.9,2468.5,4.05099038]
[1747523619663,8.068,2468.8,2468.5,4.05099038]
[1747523619871,8.066,2468.8,2468.5,4.05099038]
[1747523620060,8.8503,2468.8,2468.4,4.05111465]
[1747523620580,4.05071848,2468.7,2468.2,4.60144099]
[1747523620891,4.05071848,2468.7,2468.2,6.39949439]
[1747523621456,4.05071848,2468.7,2468.3,4.05133719]
[1747523621783,12.90093649,2468.8,2468.4,4.05118086]
[1747523621983,8.8503,2468.8,2468.5,4.05100477]
[1747523622187,0.7843,2468.8,2468.5,4.05100477]
[1747523622488,8.8363,2468.8,2468.5,4.05100477]
[1747523622695,8.8363,2468.8,2468.4,4.05118552]
[1747523623271,8.8363,2468.8,2468.5,4.0510215]
[1747523624466,8.8363,2468.8,2468.4,5.0961302]
[1747523624859,8.8203,2468.8,2468.4,5.0961302]
[1747523625691,8.8153,2468.8,2468.5,4.0509975]
[1747523628218,8.8003,2468.8,2468.5,4.05103928]
[1747523628730,12.8488533,2468.8,2468.4,5.0961736]
[1747523629022,12.8488533,2468.8,2468.4,5.09626099]
[1747523629219,12.8488533,2468.8,2468.4,4.05120401]
[1747523631024,12.8488533,2468.8,2468.3,4.05128117]
[1747523631601,12.8488533,2468.8,2468.4,4.05120099]
[1747523635516,12.8488533,2468.8,2468.3,4.05127182]
[1747523635718,12.8488533,2468.8,2468.4,4.05119576]
[1747523636221,4.05071624,2468.7,2468.3,4.05133166]
[1747523636532,7.972,2468.7,2468.3,4.05133166]
[1747523637932,7.972,2468.7,2468.4,4.051195]
[1747523639558,7.972,2468.7,2468.3,4.05129855]
[1747523639713,12.02278013,2468.7,2468.3,4.05129855]
[1747523639914,7.972,2468.7,2468.3,4.05129855]
[1747523640448,0.7843,2468.4,2467.9,4.05192473]
[1747523640751,4.8355768,2468.4,2467.9,4.05188189]
[1747523641348,4.05143048,2468.3,2467.8,4.69267392]
[1747523641644,4.05143048,2468.3,2467.8,5.0060236]
[1747523642319,4.05154503,2468.2,2467.8,0.95391087]
[1747523642648,7.949,2468.2,2467.8,5.00609619]
[1747523643168,7.949,2468.2,2467.9,4.05202416]
[1747523644054,7.949,2468.2,2467.8,5.00599104]
[1747523644555,7.949,2468.2,2467.8,5.00596348]
[1747523645663,12.0005392,2468.2,2467.8,5.00596348]
[1747523645850,12.0005392,2468.2,2467.7,4.05225872]
[1747523646037,0.7671,2468.1,2467.7,4.05224217]
[1747523646349,4.05209731,2467.9,2467.5,0.64056119]
[1747523646524,7.932,2468.0,2467.6,4.05245477]
[1747523646724,7.932,2468.0,2467.6,0.55]
[1747523647150,7.932,2468.0,2467.6,4.60239847]
[1747523647351,7.932,2468.0,2467.7,4.0522783]
[1747523648053,7.932,2468.0,2467.6,4.60246424]
[1747523648337,4.05171211,2468.1,2467.7,4.60229414]
[1747523648338,7.924,2468.1,2467.7,4.60229414]
[1747523648565,7.924,2468.1,2467.7,4.60228927]
[1747523648761,7.924,2468.1,2467.9,4.05198671]
[1747523648966,7.924,2468.1,2467.7,0.55]
[1747523649175,7.924,2468.1,2467.8,4.05204437]
[1747523649375,7.924,2468.1,2467.9,4.05195285]
[1747523649975,7.917,2468.3,2468.2,4.05142719]
[1747523650273,7.95,2468.6,2468.2,4.05138795]
[1747523650452,7.919,2468.4,2467.9,1.68179972]
[1747523650665,7.919,2468.4,2468.2,4.05144061]
[1747523650848,7.916,2468.5,2468.0,0.55]
[1747523651049,0.47975856,2469.0,2468.6,4.05087904]
[1747523651271,0.47975856,2469.0,2468.5,4.05088211]
[1747523651272,7.916,2468.7,2468.5,4.05088211]
[1747523652748,7.916,2468.7,2468.5,4.05093015]
[1747523652950,0.7843,2468.9,2468.6,4.05084934]
[1747523653190,7.914,2468.8,2468.6,4.05084934]
[1747523653675,7.914,2468.8,2468.5,4.05089877]
[1747523654455,7.914,2468.8,2468.6,4.05086822]
[1747523654657,7.914,2468.8,2468.5,4.05096379]
[1747523654860,7.914,2468.8,2468.4,4.05120725]
[1747523655173,7.914,2468.8,2468.6,4.05084737]
[1747523655581,10.05,2469.6,2468.6,0.8101986]
[1747523655875,0.47975856,2469.7,2468.9,4.05029945]
[1747523655876,4.83403942,2469.3,2468.9,4.05029945]
[1747523656468,0.7843,2469.3,2468.9,4.05029945]
[1747523656865,0.7843,2469.3,2468.7,0.55]
[1747523657068,0.7843,2469.6,2468.9,0.55]
[1747523657274,0.7843,2469.6,2469.2,4.04976893]
[1747523657580,8.6983,2469.6,2469.2,4.04976893]
[1747523657779,8.6983,2469.6,2469.3,4.04972521]
[1747523658085,8.6983,2469.6,2469.2,4.04983801]
[1747523658785,0.7843,2469.6,2469.4,4.0495236]
[1747523658951,8.6973,2469.6,2469.4,4.0495236]
[1747523659284,7.913,2469.6,2469.4,4.0495236]
[1747523659647,7.913,2469.6,2469.3,4.04964557]
[1747523660084,0.7843,2469.8,2469.4,4.04951819]
[1747523660254,7.913,2469.7,2469.5,4.04928781]
[1747523660448,13.31273619,2470.0,2469.5,4.04931612]
[1747523660696,7.913,2469.9,2469.6,4.04918248]
[1747523660849,0.47975856,2470.0,2469.4,0.55]
[1747523661053,0.47975856,2470.0,2469.8,4.04880313]
[1747523661254,8.6973,2470.2,2469.8,4.04880313]
[1747523661474,12.74563747,2470.2,2469.6,0.55]
[1747523661679,4.04844971,2470.1,2469.6,4.5991464]
[1747523661884,12.74565001,2470.2,2469.7,4.04907467]
[1747523662987,4.04843037,2470.1,2469.7,4.04907467]
[1747523663205,12.74566002,2470.2,2469.7,4.04907467]
[1747523663797,0.7843,2470.2,2469.9,4.04867182]
[1747523663997,0.7843,2470.4,2469.9,4.04863124]
[1747523664296,7.912,2470.2,2470.0,4.04850339]
[1747523664497,0.7843,2470.4,2470.0,4.04850339]
[1747523664692,7.912,2470.2,2470.0,4.04850339]
[1747523664871,0.7843,2470.4,2470.0,4.04850339]
[1747523665068,7.911,2470.3,2470.1,4.04839566]
[1747523665313,7.911,2470.4,2469.9,0.8025]
[1747523665459,7.911,2470.4,2470.0,4.04851971]
[1747523666303,11.95893136,2470.4,2469.9,6.23796058]
[1747523666604,4.83195966,2470.6,2470.0,0.55]
[1747523666605,0.7843,2470.6,2470.0,0.55]
[1747523666759,0.7843,2470.6,2470.1,0.04047746]
[1747523666959,8.6953,2470.6,2470.3,4.04807762]
[1747523667400,7.911,2470.7,2470.3,4.04798265]
[1747523667773,4.83166169,2470.8,2470.3,4.04798265]
[1747523668093,7.91,2470.7,2470.3,4.04798265]
[1747523669215,7.91,2470.7,2470.3,0.55]
[1747523669423,11.95749992,2470.7,2470.3,0.55]
[1747523669915,7.91,2470.7,2470.3,8.496]
[1747523670478,4.04776733,2470.5,2470.3,7.946]
[1747523670679,4.04776436,2470.5,2470.0,0.8274]
[1747523670913,4.04765005,2470.6,2470.1,4.04837917]
[1747523671230,4.04780823,2470.5,2470.0,5.89185702]
[1747523671525,4.04765005,2470.6,2470.0,5.89185702]
[1747523671681,11.95685611,2470.5,2470.0,5.89185702]
[1747523671882,4.0479299,2470.4,2470.0,1.84331965]
[1747523672111,11.95682089,2470.5,2470.0,5.8918957]
[1747523672310,4.04803679,2470.4,2470.0,1.84331965]
[1747523672492,4.04803679,2470.4,2470.0,0.8274]
[1747523672911,11.95682838,2470.5,2470.0,4.87597231]
[1747523673110,4.04796729,2470.4,2470.0,4.87597231]
[1747523673698,4.04796729,2470.4,2470.0,0.8274]
[1747523674015,0.7677,2470.4,2469.8,0.8274]
[1747523674207,0.7677,2470.4,2470.0,4.04849703]
[1747523674515,7.909,2470.5,2470.1,4.04835049]
[1747523674716,7.908,2470.5,2470.1,4.04835049]
[1747523675577,12.04695596,2471.0,2470.1,4.04835049]
[1747523675578,0.7843,2470.8,2470.5,4.04776361]
[1747523675884,11.25988026,2471.3,2470.1,1.58209253]
[1747523675885,8.6923,2471.2,2470.8,4.0472026]
[1747523676085,16.6923,2471.2,2470.7,0.7724]
[1747523676496,16.6923,2471.2,2470.8,4.04714606]
[1747523676899,7.907,2471.1,2470.7,0.7724]
[1747523677120,7.907,2471.1,2470.8,4.04720429]
[1747523677334,0.7843,2471.2,2470.9,4.04709092]
[1747523677495,4.04606871,2471.6,2470.9,4.04709092]
[1747523677496,7.907,2471.1,2470.9,4.04703955]
[1747523678736,7.907,2471.1,2470.8,4.04722089]
[1747523678935,7.907,2471.1,2470.4,1.3224]
[1747523679141,0.7843,2471.0,2470.5,4.0476524]
[1747523679288,7.907,2470.9,2470.6,4.04756625]
[1747523679483,7.907,2470.9,2470.7,4.04740604]
[1747523679717,7.907,2470.9,2470.6,4.04756625]
[1747523679718,7.907,2470.9,2470.6,4.04752759]
[1747523680437,7.907,2470.9,2470.6,4.04752433]
[1747523680583,0.7843,2471.0,2470.6,4.04752433]
[1747523680787,7.906,2470.8,2470.6,4.04752433]
[1747523681332,7.906,2470.8,2470.7,4.04743594]
[1747523681824,7.906,2470.8,2470.6,4.0475195]
[1747523682024,7.906,2470.8,2470.7,4.04742193]
[1747523682224,7.906,2470.8,2470.6,4.04750545]
[1747523682426,7.906,2470.8,2470.4,0.7724]
[1747523682632,4.83186361,2470.7,2470.2,4.04812275]
[1747523682805,4.04767916,2470.6,2470.1,4.04831404]
[1747523683128,4.83181316,2470.7,2470.2,4.04817064]
[1747523683699,0.7843,2470.7,2470.1,4.04837413]
[1747523683904,4.04771442,2470.6,2470.1,4.04837413]
[1747523684107,4.04771442,2470.6,2470.2,4.04823302]
[1747523684304,4.04771442,2470.6,2469.9,7.907]
[1747523684545,4.04771442,2470.6,2470.1,4.0483324]
[1747523684847,0.7843,2470.7,2470.1,4.04841343]
[1747523684848,4.83175822,2470.7,2470.1,4.04841343]
[1747523685018,4.0476895,2470.6,2470.1,4.04841343]
[1747523685220,4.04805946,2470.4,2469.9,11.95564352]
[1747523685553,7.906,2470.3,2470.0,4.04856538]
[1747523685771,7.906,2470.3,2469.9,11.95565388]
[1747523685931,7.906,2470.3,2470.0,4.04853952]
[1747523688035,0.7843,2470.6,2470.0,1.68169934]
[1747523688236,7.906,2470.5,2470.2,4.04809574]
[1747523688751,12.04716925,2470.9,2470.3,4.04794688]
[1747523688752,8.0,2470.9,2470.3,4.04794688]
[1747523688960,8.6903,2470.8,2470.4,4.04783545]
[1747523689167,7.906,2470.7,2470.5,4.04763763]
[1747523689473,7.906,2470.6,2470.0,1.68169934]
[1747523689777,7.906,2470.6,2470.2,4.04818578]
[1747523690271,7.906,2470.6,2470.2,4.04823007]
[1747523690810,7.906,2470.6,2470.1,4.04837424]
[1747523690811,11.95360809,2470.6,2470.1,4.04832721]
[1747523690976,11.95360809,2470.6,2470.1,4.04840879]
[1747523690977,0.7843,2470.5,2470.1,4.04840879]
[1747523692663,4.83206697,2470.5,2470.1,4.04840879]
[1747523693768,4.0479423,2470.4,2470.0,4.04849994]
[1747523694059,0.7843,2470.3,2469.8,0.48073653]
[1747523694250,0.7843,2470.3,2469.9,4.04865328]
[1747523694863,0.7843,2470.3,2469.8,0.70561899]
[1747523695163,0.7843,2470.3,2470.0,4.04851537]
[1747523695364,0.7843,2470.3,2470.1,4.04839137]
[1747523696063,7.905,2470.2,2470.1,4.04841909]
[1747523696359,7.905,2470.4,2470.2,4.04817942]
[1747523696531,7.905,2470.4,2470.1,4.04834935]
[1747523698171,7.905,2470.4,2470.2,4.04814272]
[1747523699261,7.905,2470.4,2470.2,4.04824279]
[1747523699779,7.905,2470.4,2470.3,4.04809132]
[1747523699945,7.905,2470.4,2470.3,4.04795031]
[1747523700277,0.7843,2470.8,2470.1,0.55]
[1747523700429,7.905,2470.6,2470.4,4.04782735]
[1747523701072,7.905,2470.6,2470.3,4.04807225]
[1747523701376,0.7843,2470.5,2469.9,0.7861]
[1747523701584,0.7843,2470.5,2470.1,4.04839219]
[1747523701728,7.907,2470.7,2470.5,4.04769096]
[1747523701927,7.905,2470.6,2470.4,4.04783239]
[1747523702164,7.907,2470.7,2470.4,4.04783239]
[1747523702478,7.905,2470.6,2470.4,4.04783239]
[1747523703178,0.7843,2470.5,2470.1,4.04840675]
[1747523703404,0.7843,2470.5,2470.3,4.04804662]
[1747523703611,7.905,2470.6,2470.4,4.04792746]
[1747523703773,8.7843,2470.9,2470.2,0.7861]
[1747523703959,15.808,2470.8,2470.4,4.04792746]
[1747523704166,15.808,2470.8,2470.3,4.53148189]
[1747523704167,15.808,2470.8,2470.2,4.83422093]
[1747523704401,19.85536982,2470.8,2470.3,4.04809132]
[1747523704762,19.85536982,2470.8,2470.2,4.83422093]
[1747523704763,16.6883,2470.9,2470.6,4.0475053]
[1747523704957,0.7843,2470.9,2470.7,4.04731829]
[1747523705216,10.05,2471.0,2470.2,1.3361]
[1747523705367,8.0,2471.3,2470.9,4.04710834]
[1747523705689,0.7764,2471.3,2471.1,4.04678078]
[1747523705863,0.7764,2471.3,2470.9,4.04706658]
[1747523705864,7.904,2471.2,2470.9,4.04701742]
[1747523706208,0.7764,2471.3,2470.7,0.7617]
[1747523706385,7.904,2471.4,2471.2,4.04661702]
[1747523706563,7.904,2471.4,2471.1,4.04668633]
[1747523707072,7.904,2471.4,2470.7,8.6657]
[1747523707271,0.7764,2471.1,2470.4,0.7617]
[1747523707590,7.903,2471.0,2470.8,4.04715396]
[1747523708514,8.7764,2471.5,2470.8,0.55]
[1747523708818,7.903,2471.5,2471.3,4.04638081]
[1747523709125,11.94925147,2471.5,2471.0,4.04687242]
[1747523709607,7.903,2471.5,2471.0,4.04694455]
[1747523709815,0.7764,2471.7,2471.3,4.04643754]
[1747523710023,7.903,2471.6,2471.4,4.04626246]
[1747523710176,7.903,2471.6,2471.2,4.04654584]
[1747523710371,4.04624348,2471.5,2471.0,4.04686631]
[1747523710903,11.94905157,2471.6,2471.1,4.04676836]
[1747523711913,4.04605157,2471.6,2471.1,4.04676836]
[1747523712212,12.70730221,2471.8,2471.3,4.04629371]
[1747523712411,7.903,2471.7,2471.3,4.04629371]
[1747523712887,7.903,2471.7,2471.4,4.04628029]
[1747523713095,11.94880798,2471.7,2471.2,4.85232501]
[1747523713443,4.04596857,2471.6,2471.2,4.85232039]
[1747523713719,7.903,2471.7,2471.2,4.04652039]
[1747523713917,4.04598378,2471.6,2471.2,4.04652039]
[1747523714779,4.04598378,2471.6,2471.1,4.04669602]
[1747523715317,0.7586,2471.5,2470.9,0.30874837]
[1747523715522,4.04703241,2471.0,2470.6,0.48073653]
[1747523715678,8.6863,2471.0,2470.6,0.48073653]
[1747523716086,4.04736977,2470.8,2470.6,0.48073653]
[1747523716706,4.83173594,2470.7,2470.6,0.48073653]
[1747523717036,0.7843,2470.7,2470.6,0.48073653]
[1747523717203,4.83173594,2470.7,2470.6,0.48073653]
[1747523718744,0.7843,2470.7,2470.1,0.7524]
[1747523719033,4.831754,2470.7,2470.3,4.04808246]
[1747523719533,0.7843,2470.7,2470.3,0.88487898]
[1747523719737,7.902,2470.6,2470.3,4.04799867]
[1747523720034,11.94968854,2470.6,2470.1,4.04834942]
[1747523721123,4.04777799,2470.5,2470.0,4.04852029]
[1747523721428,0.7767,2470.3,2470.0,4.04856686]
[1747523721833,0.7767,2470.3,2469.9,0.48073653]
[1747523721834,0.7767,2470.3,2469.9,4.5293964]
[1747523722038,0.7767,2470.3,2470.0,0.95991344]
[1747523722270,0.7767,2470.3,2470.0,5.00849585]
[1747523722467,0.7767,2470.3,2470.1,4.04841755]
[1747523722765,0.7767,2470.3,2470.0,5.00847117]
[1747523722971,0.7767,2470.3,2469.9,4.529453]
[1747523723270,0.7767,2470.3,2470.0,4.0484553]
[1747523723573,0.7767,2470.3,2469.9,4.52941089]
[1747523723724,0.7767,2470.3,2470.0,4.04857079]
[1747523724240,0.7767,2470.3,2470.1,4.04839589]
[1747523725156,0.7767,2470.3,2470.1,0.44508688]
[1747523725771,4.04832242,2470.2,2469.8,0.22488246]
[1747523726159,4.04832242,2470.2,2469.8,4.27376812]
[1747523726666,4.04832242,2470.2,2469.8,0.22488246]
[1747523727164,4.82487385,2470.3,2469.8,4.27377159]
[1747523727368,4.04834038,2470.2,2469.8,4.04889296]
[1747523727951,4.82484892,2470.3,2469.8,4.04889296]
[1747523728887,4.04826724,2470.2,2469.8,4.04889296]
[1747523729170,4.82483577,2470.3,2469.8,4.04889296]
[1747523730078,4.04827071,2470.2,2469.7,4.04906251]
[1747523730244,4.04868488,2470.0,2469.7,1.71021655]
[1747523730442,4.83298488,2470.0,2469.6,0.30492692]
[1747523730758,4.8329688,2470.0,2469.5,4.04931461]
[1747523730933,4.8329688,2470.0,2469.6,4.04921508]
[1747523731134,4.04875897,2469.9,2469.5,4.04933253]
[1747523731338,4.83291116,2470.0,2469.5,4.04933253]
[1747523731534,4.83291116,2470.0,2469.5,5.07394324]
[1747523733168,4.83291116,2470.0,2469.4,5.166038]
[1747523733169,0.7843,2470.0,2469.4,0.2978279]
[1747523733406,8.0,2470.4,2469.7,0.8187]
[1747523733536,7.902,2470.6,2469.9,0.8187]
[1747523733876,7.902,2470.6,2470.2,4.04818625]
[1747523734170,11.94960067,2470.6,2470.1,4.04834301]
[1747523734349,11.94960067,2470.6,2469.9,0.8187]
[1747523734350,4.04788097,2470.5,2469.9,0.8187]
[1747523734545,4.04788097,2470.5,2469.9,4.86737969]
[1747523734749,0.7843,2470.4,2469.9,4.86737969]
[1747523735235,4.04809883,2470.3,2469.9,4.86737969]
[1747523735436,4.04809883,2470.3,2469.9,0.8187]
[1747523735636,4.83232438,2470.4,2469.9,4.86742992]
[1747523735838,4.83232438,2470.4,2470.0,4.04858252]
[1747523736571,7.902,2470.3,2470.0,4.04858252]
[1747523737372,7.902,2470.3,2469.9,5.17766608]
[1747523737875,7.902,2470.3,2469.9,6.1003335]
[1747523738077,7.902,2470.3,2470.1,4.04839333]
[1747523738280,7.901,2470.3,2470.2,4.04823838]
[1747523738950,7.901,2470.3,2470.1,4.04840043]
[1747523739274,7.901,2470.3,2469.9,6.10025381]
[1747523739577,12.73347425,2470.3,2469.9,1.12897259]
[1747523739782,12.73341774,2470.3,2469.9,1.12897259]
[1747523740278,4.04829803,2470.2,2469.7,4.86278235]
[1747523740443,12.73347257,2470.3,2469.8,4.04890093]
[1747523740639,12.73347257,2470.3,2469.9,4.9399069]
[1747523740640,7.901,2470.3,2469.9,4.9399069]
[1747523740853,11.94912672,2470.3,2469.9,4.9399069]
[1747523741054,11.94912672,2470.3,2469.9,0.89116833]
[1747523741577,4.04827901,2470.2,2469.9,0.89116833]
[1747523741778,0.7843,2470.2,2469.5,0.48073653]
[1747523741941,0.7843,2470.1,2469.5,0.48073653]
[1747523742136,4.04910456,2469.7,2469.5,0.48073653]
[1747523742388,4.83353874,2469.6,2469.5,0.48073653]
[1747523743236,0.7843,2469.6,2469.5,0.48073653]
[1747523743436,8.6853,2469.6,2469.5,0.48073653]
[1747523744080,12.73453874,2469.6,2469.5,0.48073653]
[1747523744871,12.73453874,2469.6,2469.1,4.04996768]
[1747523745079,12.73453874,2469.6,2469.2,4.94012174]
[1747523747277,8.6853,2469.6,2469.2,4.94012174]
[1747523747655,12.73466092,2469.6,2469.2,0.89024692]
[1747523747842,4.04967351,2469.4,2469.0,0.8023]
[1747523748267,4.04946576,2469.5,2468.9,4.53104648]
[1747523748451,4.04946576,2469.5,2468.9,0.48073653]